bitfinex/quotes_BTCUSD_20211001
["timestamp","ask_amount","ask_price","bid_price","bid_amount"]
[1633050844152,0.00409651,43495.0,43493.0,0.02149071]
[1633050844350,0.00409651,43495.0,43493.0,0.0202]
[1633050844747,0.00409651,43495.0,43493.0,0.32213457]
[1633050844948,0.00409651,43495.0,43494.0,0.229159]
[1633050845154,0.00562593,43495.0,43494.0,0.249359]
[1633050845349,0.05052942,43495.0,43494.0,0.25657092]
[1633050845548,0.04552942,43495.0,43494.0,0.02741192]
[1633050846148,0.04971502,43495.0,43494.0,0.0202]
[1633050846751,0.0041856,43495.0,43494.0,0.0202]
[1633050847346,0.0381856,43495.0,43494.0,0.294359]
[1633050847749,0.0381856,43495.0,43494.0,1.507359]
[1633050848953,0.0041856,43495.0,43494.0,1.462359]
[1633050849255,0.0041856,43495.0,43494.0,1.685559]
[1633050849450,0.0041856,43495.0,43494.0,2.07783456]
[1633050850653,0.11,43495.0,43494.0,2.02683456]
[1633050850851,0.11,43495.0,43494.0,2.03404569]
[1633050851050,0.11,43495.0,43494.0,2.15574069]
[1633050851451,0.11,43495.0,43494.0,2.20774069]
[1633050851651,0.11,43495.0,43494.0,2.20052956]
[1633050851853,0.11418562,43495.0,43494.0,2.10052956]
[1633050852051,0.2937955,43502.0,43495.0,0.4]
[1633050852251,0.2937955,43502.0,43498.0,0.42528645]
[1633050852452,0.2937955,43502.0,43499.0,1.762359]
[1633050853253,0.2937955,43502.0,43500.0,0.29503139]
[1633050854455,0.2937955,43502.0,43500.0,0.37467461]
[1633050854655,0.4037955,43502.0,43500.0,0.37467461]
[1633050855056,0.4037955,43502.0,43500.0,0.29503139]
[1633050855613,0.4037955,43502.0,43500.0,0.047]
[1633050856155,0.4037955,43502.0,43501.0,0.00929367]
[1633050856960,0.4034737,43502.0,43501.0,0.00929367]
[1633050857157,0.4034737,43502.0,43501.0,0.31053323]
[1633050857158,0.40756955,43502.0,43501.0,0.31053323]
[1633050857357,0.40756955,43502.0,43501.0,0.35153323]
[1633050858758,0.40756955,43502.0,43501.0,0.31053323]
[1633050859362,0.40756955,43502.0,43501.0,0.35153323]
[1633050860361,0.40756955,43502.0,43501.0,0.93069223]
[1633050860561,0.0558832,43505.0,43501.0,0.93069223]
[1633050860562,0.0558832,43505.0,43502.0,0.98243708]
[1633050860763,0.0558832,43505.0,43504.0,1.229159]
[1633050860962,0.0558832,43505.0,43504.0,2.462359]
[1633050861361,0.0558832,43505.0,43504.0,2.508359]
[1633050861619,0.0558832,43505.0,43504.0,2.008359]
[1633050861760,0.0558832,43505.0,43504.0,2.01969586]
[1633050861962,0.0558832,43505.0,43504.0,0.30669586]
[1633050862361,0.0558832,43505.0,43504.0,0.07753686]
[1633050862759,0.0558832,43505.0,43504.0,0.03153686]
[1633050863162,0.0558832,43505.0,43504.0,0.26069586]
[1633050863360,0.0558832,43505.0,43504.0,0.32069586]
[1633050863560,0.0558832,43505.0,43504.0,1.75689586]
[1633050863762,0.0558832,43505.0,43504.0,1.53369586]
[1633050863961,0.0558832,43505.0,43504.0,1.522359]
[1633050864764,0.0558832,43505.0,43504.0,1.462359]
[1633050865362,0.0558832,43505.0,43504.0,1.522359]
[1633050865763,0.0558832,43505.0,43504.0,0.309359]
[1633050866763,0.0558832,43505.0,43504.0,0.249359]
[1633050867163,0.0558832,43505.0,43504.0,0.26069586]
[1633050867367,0.0558832,43505.0,43504.0,0.32069586]
[1633050868964,0.0558832,43505.0,43504.0,0.26069586]
[1633050869366,0.0558832,43505.0,43504.0,0.309359]
[1633050870766,0.0558832,43505.0,43504.0,0.249359]
[1633050871367,0.0558832,43505.0,43504.0,0.311359]
[1633050872767,0.0558832,43505.0,43504.0,0.32269586]
[1633050873375,0.00125827,43511.0,43504.0,0.32269586]
[1633050873648,0.00125693,43521.0,43504.0,0.37298654]
[1633050873649,1.0027,43519.0,43504.0,0.37298654]
[1633050873777,0.00124144,43510.0,43504.0,0.14253686]
[1633050873976,0.00124144,43510.0,43504.0,0.12233686]
[1633050874375,0.00124144,43510.0,43508.0,0.19432664]
[1633050874573,0.459888,43508.0,43504.0,0.12233686]
[1633050874775,0.459888,43508.0,43504.0,0.84836821]
[1633050875180,0.19720242,43507.0,43504.0,0.84836821]
[1633050875376,0.00120308,43505.0,43504.0,0.84836821]
[1633050875575,0.00120308,43505.0,43504.0,0.90736821]
[1633050875773,0.00173318,43505.0,43504.0,0.90736821]
[1633050876174,0.00120308,43505.0,43504.0,1.08944851]
[1633050877374,0.00120308,43505.0,43504.0,1.03044851]
[1633050877573,0.00120308,43505.0,43504.0,1.07444851]
[1633050878174,0.00120308,43505.0,43504.0,1.08578537]
[1633050878378,0.344938,43506.0,43504.0,1.08578537]
[1633050878576,0.34488,43508.0,43505.0,0.229159]
[1633050878976,0.34488,43508.0,43505.0,0.22895975]
[1633050879378,0.34488,43508.0,43505.0,0.44369305]
[1633050879635,0.34488,43508.0,43505.0,0.2637333]
[1633050880876,0.34488,43508.0,43505.0,0.2147333]
[1633050881077,0.34488,43508.0,43504.0,0.84836821]
[1633050881278,0.0005301,43507.0,43504.0,0.84836821]
[1633050881477,0.0005301,43507.0,43505.0,0.047]
[1633050882278,0.00124373,43508.0,43505.0,0.047]
[1633050882481,0.344935,43506.0,43505.0,0.047]
[1633050882686,0.76366047,43506.0,43505.0,0.047]
[1633050882886,0.76366047,43506.0,43504.0,0.84836821]
[1633050882887,1.14290947,43506.0,43504.0,0.84836821]
[1633050883082,0.26151795,43505.0,43504.0,0.84836821]
[1633050883283,0.52000688,43505.0,43504.0,0.84836821]
[1633050883479,0.62419729,43505.0,43504.0,0.89270428]
[1633050883680,0.63996449,43505.0,43504.0,0.89270428]
[1633050884081,0.62418746,43505.0,43504.0,0.89270428]
[1633050884883,0.160296,43505.0,43504.0,0.89270428]
[1633050885281,0.344935,43506.0,43504.0,0.89270428]
[1633050885483,0.344935,43506.0,43504.0,0.88636821]
[1633050885884,0.344935,43506.0,43505.0,0.22148035]
[1633050886082,0.344935,43506.0,43505.0,0.32791927]
[1633050887485,0.06263411,43512.0,43505.0,0.36391927]
[1633050887682,0.22995156,43519.0,43505.0,0.36391927]
[1633050887683,0.06266493,43514.0,43505.0,0.36391927]
[1633050887885,0.52383322,43515.0,43505.0,0.36391927]
[1633050888085,0.46114976,43515.0,43505.0,0.36391927]
[1633050888285,0.459913,43515.0,43509.0,0.22299707]
[1633050888485,0.229249,43514.0,43506.0,0.229909]
[1633050888749,0.75256561,43515.0,43506.0,0.229909]
[1633050888943,0.75256561,43515.0,43507.0,0.01132738]
[1633050889146,0.6898456,43515.0,43507.0,0.01132738]
[1633050889542,0.6898456,43515.0,43507.0,0.05332738]
[1633050889744,0.75259028,43515.0,43507.0,0.05332738]
[1633050890342,0.344858,43511.0,43508.0,0.20015128]
[1633050891542,0.344858,43511.0,43508.0,0.24215128]
[1633050892945,0.344858,43511.0,43508.0,0.042]
[1633050893350,0.344858,43511.0,43506.0,0.229909]
[1633050893545,0.344858,43511.0,43508.0,0.042]
[1633050893945,0.53052628,43511.0,43508.0,0.042]
[1633050894348,0.16157794,43509.0,43508.0,0.042]
[1633050894550,0.35984558,43509.0,43508.0,0.05332896]
[1633050894772,0.16157794,43509.0,43508.0,0.05332896]
[1633050894971,0.16157794,43509.0,43508.0,0.01132896]
[1633050895570,0.31657794,43509.0,43508.0,0.04932896]
[1633050895974,0.66153894,43509.0,43508.0,0.038]
[1633050896976,0.50124294,43509.0,43508.0,0.038]
[1633050897373,0.45624294,43509.0,43504.0,1.03601174]
[1633050897573,0.50324294,43509.0,43508.0,0.038]
[1633050898875,0.50324294,43509.0,43504.0,0.84836821]
[1633050898876,0.45624294,43509.0,43504.0,0.84836821]
[1633050899073,0.454961,43509.0,43504.0,0.84836821]
[1633050899474,0.495961,43509.0,43504.0,0.89236821]
[1633050899875,0.495961,43509.0,43504.0,0.90370191]
[1633050900876,0.454961,43509.0,43504.0,0.85970191]
[1633050901079,0.454961,43509.0,43504.0,1.08963491]
[1633050901281,0.454961,43509.0,43504.0,1.07830121]
[1633050901477,0.495961,43509.0,43504.0,1.12630121]
[1633050902078,0.495961,43509.0,43505.0,0.229937]
[1633050902881,0.454961,43509.0,43505.0,0.229937]
[1633050903481,0.454961,43509.0,43505.0,0.274937]
[1633050903482,0.492961,43509.0,43505.0,0.274937]
[1633050904879,0.454961,43509.0,43505.0,0.229937]
[1633050905481,0.454961,43509.0,43506.0,0.00887754]
[1633050905681,0.492961,43509.0,43506.0,0.00887754]
[1633050906681,0.492961,43509.0,43505.0,0.274937]
[1633050906884,0.00409527,43508.0,43505.0,0.229937]
[1633050907483,0.04209527,43508.0,43505.0,0.274937]
[1633050908084,0.04209527,43508.0,43505.0,0.51041527]
[1633050908285,0.344949,43507.0,43505.0,0.51041527]
[1633050908483,0.344949,43507.0,43505.0,0.274937]
[1633050909084,0.00409541,43506.0,43505.0,0.229937]
[1633050909484,0.00409541,43506.0,43505.0,0.45933108]
[1633050909744,0.04109541,43506.0,43505.0,0.50433108]
[1633050910943,0.34647797,43507.0,43505.0,0.45933108]
[1633050911144,0.34647797,43507.0,43505.0,0.4682109]
[1633050911347,0.00152897,43507.0,43506.0,0.55716739]
[1633050911551,0.02852897,43507.0,43506.0,0.78694649]
[1633050911945,0.02852897,43507.0,43506.0,0.80714649]
[1633050912346,0.344827,43515.0,43512.0,0.229885]
[1633050912548,1.0,43518.0,43517.0,0.00125961]
[1633050913352,1.0,43518.0,43517.0,0.6661399]
[1633050913553,1.048,43518.0,43517.0,0.94656288]
[1633050913752,1.048,43518.0,43517.0,0.9828241]
[1633050913953,1.048,43518.0,43517.0,0.04025961]
[1633050914552,1.05209433,43518.0,43517.0,0.25866284]
[1633050914753,1.05209433,43518.0,43517.0,0.25740323]
[1633050914953,1.00409433,43518.0,43517.0,0.21840323]
[1633050915156,1.11409433,43518.0,43517.0,0.21840323]
[1633050915553,1.14209433,43518.0,43517.0,0.25740323]
[1633050915954,1.14209433,43518.0,43517.0,0.48186175]
[1633050916157,1.14209433,43518.0,43517.0,0.85327519]
[1633050916354,1.14209433,43518.0,43517.0,1.03305429]
[1633050916554,1.138,43518.0,43517.0,1.04191584]
[1633050916757,1.138,43518.0,43517.0,1.34191584]
[1633050916954,1.11,43518.0,43517.0,1.30291584]
[1633050917355,1.11,43518.0,43517.0,1.00291584]
[1633050917554,1.154,43518.0,43517.0,1.04791584]
[1633050918158,2.0,43525.0,43524.0,1.10156361]
[1633050918159,1.03414338,43525.0,43524.0,1.10156361]
[1633050918359,1.03414338,43525.0,43524.0,2.07547858]
[1633050918555,1.03414338,43525.0,43524.0,2.46600868]
[1633050918859,0.04,43529.0,43525.0,1.29834473]
[1633050919056,0.04,43529.0,43528.0,0.63053099]
[1633050919260,0.04,43529.0,43528.0,1.56827091]
[1633050919455,0.04,43529.0,43528.0,1.51827091]
[1633050919655,0.04,43529.0,43528.0,1.56427091]
[1633050919856,0.04,43529.0,43528.0,1.33970571]
[1633050920055,0.04409329,43529.0,43528.0,1.33970571]
[1633050920256,0.04409329,43529.0,43528.0,2.55270571]
[1633050920455,0.04409329,43529.0,43528.0,2.77590571]
[1633050920656,0.04409329,43529.0,43528.0,3.06590571]
[1633050920858,0.04409329,43529.0,43528.0,3.11990571]
[1633050921257,0.04409329,43529.0,43528.0,2.84670571]
[1633050921457,0.04409329,43529.0,43528.0,2.50670571]
[1633050921659,0.04409329,43529.0,43528.0,2.78790571]
[1633050921863,0.04409329,43529.0,43528.0,2.78290571]
[1633050922058,0.04,43529.0,43528.0,2.79175051]
[1633050922458,0.04,43529.0,43528.0,2.67168871]
[1633050922858,0.04,43529.0,43528.0,2.61368871]
[1633050923659,0.04,43529.0,43528.0,2.68068871]
[1633050924061,0.0925017,43544.0,43531.0,0.229249]
[1633050924262,0.0925017,43544.0,43543.0,0.00126132]
[1633050924467,0.0925017,43544.0,43543.0,0.02146132]
[1633050924659,0.0925017,43544.0,43543.0,0.25071032]
[1633050924861,0.0925017,43544.0,43543.0,1.71923861]
[1633050925060,0.0925017,43544.0,43543.0,2.76118488]
[1633050925261,0.0925017,43544.0,43543.0,2.76171498]
[1633050925660,0.0925017,43544.0,43543.0,1.59218488]
[1633050925860,0.09659358,43544.0,43543.0,1.01055972]
[1633050926061,0.03609358,43549.0,43545.0,0.00031]
[1633050926262,0.03609358,43549.0,43546.0,0.249889]
[1633050926461,0.03737166,43549.0,43546.0,0.229689]
[1633050926862,0.11568171,43549.0,43545.0,0.00031]
[1633050927063,0.459469,43548.0,43545.0,0.00031]
[1633050927261,0.459469,43548.0,43546.0,0.18645884]
[1633050927459,0.229249,43547.0,43546.0,0.1973222]
[1633050927659,0.459469,43548.0,43546.0,0.1973222]
[1633050929060,6.143e-05,43548.0,43546.0,0.1973222]
[1633050929665,6.143e-05,43548.0,43546.0,0.2393222]
[1633050929863,6.143e-05,43548.0,43547.0,0.17807093]
[1633050930165,6.143e-05,43548.0,43547.0,0.40731993]
[1633050930365,6.143e-05,43548.0,43547.0,0.4086006]
[1633050931364,6.143e-05,43548.0,43547.0,1.6216006]
[1633050931765,6.143e-05,43548.0,43547.0,1.6676006]
[1633050932769,6.143e-05,43548.0,43547.0,1.67846244]
[1633050932967,6.143e-05,43548.0,43547.0,0.46546244]
[1633050933364,6.143e-05,43548.0,43547.0,1.67846244]
[1633050933766,6.143e-05,43548.0,43547.0,1.67746244]
[1633050934166,6.143e-05,43548.0,43547.0,1.63246244]
[1633050934566,6.143e-05,43548.0,43547.0,0.41946244]
[1633050935369,6.143e-05,43548.0,43547.0,1.85566244]
[1633050935570,6.143e-05,43548.0,43547.0,2.37639254]
[1633050935770,6.143e-05,43548.0,43547.0,2.52139254]
[1633050936168,0.0900482,43560.0,43548.0,1.079249]
[1633050936366,0.0900482,43560.0,43557.0,0.00128127]
[1633050936569,0.0900482,43560.0,43557.0,0.02148127]
[1633050936770,0.344474,43559.0,43557.0,0.02148127]
[1633050937769,0.344474,43559.0,43557.0,0.06948127]
[1633050938370,0.344474,43559.0,43558.0,0.01084588]
[1633050938770,0.444374,43559.0,43558.0,0.01084588]
[1633050939772,0.444374,43559.0,43558.0,0.05784588]
[1633050940972,0.444374,43559.0,43558.0,0.01084588]
[1633050941775,0.444374,43559.0,43558.0,0.05784588]
[1633050942374,0.444374,43559.0,43558.0,0.047]
[1633050942578,0.344474,43559.0,43558.0,0.28065613]
[1633050942978,0.344474,43559.0,43557.0,0.02148127]
[1633050943179,0.344474,43559.0,43557.0,0.0202]
[1633050943777,0.344474,43559.0,43557.0,0.0732]
[1633050943976,0.344474,43559.0,43558.0,0.01084588]
[1633050944377,0.57493022,43559.0,43558.0,0.01084588]
[1633050944579,0.72493022,43559.0,43558.0,0.01084588]
[1633050945377,0.67493022,43559.0,43558.0,0.01084588]
[1633050945577,0.57493022,43559.0,43558.0,0.01084588]
[1633050945778,0.57493022,43559.0,43558.0,0.05484588]
[1633050946978,0.57493022,43559.0,43558.0,0.01084588]
[1633050946979,0.62493022,43559.0,43558.0,0.01084588]
[1633050947181,0.42644305,43558.0,43555.0,0.00031]
[1633050947378,0.210296,43557.0,43555.0,0.00031]
[1633050947581,0.00124531,43556.0,43555.0,0.00031]
[1633050947782,0.00124531,43556.0,43555.0,0.04431]
[1633050947981,0.23049431,43556.0,43555.0,0.04431]
[1633050949179,0.23049431,43556.0,43555.0,0.00573674]
[1633050949780,0.23049431,43556.0,43555.0,0.04973674]
[1633050949985,0.57815327,43556.0,43555.0,0.04973674]
[1633050950185,0.50912674,43550.0,43546.0,0.1]
[1633050950389,0.09218091,43547.0,43546.0,0.1]
[1633050950581,0.67922086,43547.0,43546.0,0.1]
[1633050950780,0.72922086,43547.0,43546.0,0.1]
[1633050950981,0.82754723,43547.0,43546.0,0.1]
[1633050951180,0.62796628,43547.0,43546.0,0.1]
[1633050951381,0.87430491,43547.0,43546.0,0.1]
[1633050951581,0.82430491,43547.0,43546.0,0.1]
[1633050951782,0.82430491,43547.0,43546.0,0.145]
[1633050952382,0.90117581,43547.0,43546.0,0.145]
[1633050952985,0.95117581,43547.0,43546.0,0.1]
[1633050953781,0.95117581,43547.0,43546.0,0.144]
[1633050954181,0.90117581,43547.0,43546.0,0.144]
[1633050954783,0.90117581,43547.0,43546.0,0.14890476]
[1633050954984,0.90117581,43547.0,43546.0,0.10490476]
[1633050955386,0.95117581,43547.0,43546.0,0.10490476]
[1633050955590,0.09239379,43539.0,43528.0,1.08194774]
[1633050955786,0.00128198,43535.0,43528.0,1.08194774]
[1633050956385,0.00128198,43535.0,43533.0,0.24839054]
[1633050956786,0.34599198,43535.0,43533.0,0.24839054]
[1633050956988,0.54862398,43535.0,43533.0,0.24839054]
[1633050957185,0.54362398,43535.0,43533.0,0.24839054]
[1633050957787,0.54362398,43535.0,43534.0,0.04631]
[1633050958787,0.55431171,43535.0,43534.0,0.04631]
[1633050958986,0.55431171,43535.0,43534.0,0.00031]
[1633050959791,0.55431171,43535.0,43534.0,0.04431]
[1633050959989,0.78356071,43535.0,43534.0,0.04431]
[1633050960187,0.77287298,43535.0,43534.0,0.04431]
[1633050960389,0.57146896,43535.0,43534.0,0.04431]
[1633050960791,0.92153742,43535.0,43534.0,0.04431]
[1633050961188,0.92153742,43535.0,43534.0,0.03987901]
[1633050961390,0.22984498,43533.0,43529.0,0.04]
[1633050961589,0.19372417,43532.0,43529.0,0.04]
[1633050961789,0.24372417,43532.0,43529.0,0.22425683]
[1633050961989,0.68849217,43532.0,43529.0,0.22425683]
[1633050962193,0.574624,43541.0,43531.0,0.00122721]
[1633050962590,0.2297688,43538.0,43530.0,0.21184104]
[1633050962790,0.2297688,43538.0,43530.0,0.00120274]
[1633050963193,0.344685,43535.0,43532.0,0.08630272]
[1633050963392,0.344685,43535.0,43532.0,0.24765831]
[1633050963791,0.344685,43535.0,43530.0,0.00120274]
[1633050963990,0.344685,43535.0,43532.0,0.058]
[1633050963991,0.19338588,43534.0,43532.0,0.058]
[1633050964191,0.45958,43536.0,43532.0,0.058]
[1633050964392,0.01273287,43535.0,43532.0,0.058]
[1633050964792,0.344702,43533.0,43532.0,0.058]
[1633050964993,0.344702,43533.0,43532.0,0.28002478]
[1633050965996,0.344702,43533.0,43532.0,0.055]
[1633050966796,0.344702,43533.0,43529.0,0.04]
[1633050967397,0.22982475,43532.0,43529.0,0.04]
[1633050967795,0.22982475,43532.0,43529.0,0.091]
[1633050968997,0.344719,43531.0,43529.0,0.091]
[1633050969197,0.19251403,43530.0,43529.0,0.091]
[1633050969596,0.229249,43530.0,43529.0,0.091]
[1633050969797,0.229249,43530.0,43529.0,0.04]
[1633050969798,0.24197639,43530.0,43529.0,0.04]
[1633050969996,0.24197639,43530.0,43529.0,0.087]
[1633050970799,0.29197639,43530.0,43529.0,0.087]
[1633050971202,0.229249,43530.0,43529.0,0.087]
[1633050971411,0.229249,43530.0,43529.0,0.04]
[1633050971800,0.229249,43530.0,43529.0,0.085]
[1633050972201,0.279249,43530.0,43529.0,0.085]
[1633050973203,0.28049172,43530.0,43529.0,0.04]
[1633050973603,0.47299544,43530.0,43529.0,0.04]
[1633050973806,0.50999544,43530.0,43529.0,0.083]
[1633050974002,0.31749172,43530.0,43529.0,0.083]
[1633050975003,0.5094593,43530.0,43529.0,0.083]
[1633050975204,0.47398746,43530.0,43529.0,0.04]
[1633050975402,0.58671487,43530.0,43529.0,0.04]
[1633050975801,0.62871487,43530.0,43529.0,0.082]
[1633050976001,0.33674729,43530.0,43529.0,0.082]
[1633050976202,0.43674729,43530.0,43529.0,0.082]
[1633050976805,0.42401988,43530.0,43529.0,0.082]
[1633050977408,0.28201988,43530.0,43529.0,0.04]
[1633050977808,0.32401988,43530.0,43529.0,0.082]
[1633050979012,0.42401988,43530.0,43529.0,0.082]
[1633050979208,0.38201988,43530.0,43529.0,0.04]
[1633050979809,0.42401988,43530.0,43529.0,0.082]
[1633050980809,0.43674731,43530.0,43529.0,0.082]
[1633050981209,0.39474731,43530.0,43529.0,0.04]
[1633050981812,0.63043924,43530.0,43529.0,0.082]
[1633050982212,0.61771181,43530.0,43529.0,0.082]
[1633050982412,0.42401988,43530.0,43529.0,0.082]
[1633050983216,0.38201988,43530.0,43529.0,0.04]
[1633050983417,0.23077716,43530.0,43529.0,0.04]
[1633050983616,0.00152816,43530.0,43525.0,0.23964088]
[1633050983816,0.04152816,43530.0,43529.0,0.043]
[1633050985220,0.344716,43529.0,43525.0,0.23964088]
[1633050985422,0.344716,43529.0,43526.0,0.229249]
[1633050985623,0.344716,43529.0,43525.0,0.23964088]
[1633050985820,0.389716,43529.0,43525.0,0.28664088]
[1633050986222,0.01272439,43528.0,43525.0,0.28664088]
[1633050987223,0.01272439,43528.0,43525.0,0.23964088]
[1633050987422,0.344752,43527.0,43525.0,0.23964088]
[1633050987682,0.344752,43527.0,43526.0,0.229249]
[1633050987825,0.044,43528.0,43527.0,0.9]
[1633050988027,0.044,43528.0,43527.0,2.96549305]
[1633050988225,0.044,43528.0,43527.0,3.20549305]
[1633050989024,0.044,43528.0,43527.0,3.42869305]
[1633050989224,0.19991769,43540.0,43527.0,3.42869305]
[1633050989428,0.344606,43542.0,43539.0,0.00123781]
[1633050989429,0.40992359,43542.0,43539.0,0.00123781]
[1633050989625,0.229249,43541.0,43539.0,0.00123781]
[1633050989825,0.344606,43542.0,43539.0,0.00123781]
[1633050990025,0.229249,43541.0,43539.0,0.00123781]
[1633050990426,0.344626,43541.0,43539.0,0.00123781]
[1633050991429,0.344626,43541.0,43539.0,0.21624643]
[1633050991629,0.22975328,43542.0,43539.0,0.21624643]
[1633050991830,0.046,43541.0,43539.0,0.25924643]
[1633050992031,0.0127403,43540.0,43539.0,0.04423781]
[1633050992228,0.0127403,43540.0,43539.0,0.48777431]
[1633050992428,0.0127403,43540.0,43539.0,0.04423781]
[1633050992829,0.0127403,43540.0,43539.0,0.25703414]
[1633050993228,0.22975328,43542.0,43539.0,0.21403414]
[1633050993830,0.27375328,43542.0,43539.0,0.25603414]
[1633050994031,0.044,43542.0,43541.0,0.00120809]
[1633050994434,0.044,43542.0,43541.0,0.23045709]
[1633050995031,0.044,43542.0,43541.0,0.00120809]
[1633050995233,0.24660056,43545.0,43541.0,0.00120809]
[1633050995635,0.07684772,43547.0,43543.0,0.18944989]
[1633050995832,0.07684772,43547.0,43541.0,0.04320809]
[1633050995833,0.046,43545.0,43541.0,0.04320809]
[1633050996034,0.344645,43543.0,43541.0,0.04320809]
[1633050996235,0.229249,43542.0,43541.0,0.04320809]
[1633050997239,0.344645,43543.0,43541.0,0.04320809]
[1633050997440,0.01274215,43542.0,43541.0,0.04320809]
[1633050997837,0.01274215,43542.0,43541.0,0.04720809]
[1633050998039,0.24199115,43542.0,43541.0,0.04720809]
[1633050998838,0.229249,43542.0,43541.0,0.04720809]
[1633050999439,0.573888,43542.0,43541.0,0.00120809]
[1633050999843,0.600888,43542.0,43541.0,0.04520809]
[1633051000643,0.027,43542.0,43541.0,0.04520809]
[1633051000841,0.027,43542.0,43541.0,0.1430504]
[1633051001241,0.22978031,43546.0,43541.0,0.0990504]
[1633051001440,0.22978031,43546.0,43541.0,0.34531369]
[1633051001644,0.22978031,43546.0,43541.0,0.24747138]
[1633051001841,0.22978031,43546.0,43541.0,0.04720809]
[1633051002041,0.26178031,43546.0,43541.0,0.04720809]
[1633051002240,0.344614,43543.0,43541.0,0.04720809]
[1633051002446,0.344614,43543.0,43541.0,0.046]
[1633051002742,0.33746632,43542.0,43541.0,0.046]
[1633051003143,0.24199178,43542.0,43541.0,0.046]
[1633051003344,0.24199178,43542.0,43537.0,0.43704614]
[1633051003543,0.22976447,43541.0,43537.0,0.43704614]
[1633051003942,0.344652,43540.0,43537.0,0.48904614]
[1633051004543,0.22976447,43541.0,43537.0,0.48904614]
[1633051004743,0.22976447,43541.0,43538.0,0.229249]
[1633051004944,0.22976447,43541.0,43537.0,0.052]
[1633051004945,0.00126223,43539.0,43537.0,0.052]
[1633051005147,0.00126223,43539.0,43528.0,0.9921]
[1633051005944,0.07203467,43537.0,43532.0,0.22566393]
[1633051006146,0.07203467,43537.0,43532.0,0.229776]
[1633051006147,0.45271334,43535.0,43532.0,0.229776]
[1633051006345,0.45271334,43535.0,43530.0,0.053]
[1633051006545,0.344683,43535.0,43530.0,0.053]
[1633051007347,0.344683,43535.0,43529.0,0.23500089]
[1633051007946,0.373683,43535.0,43529.0,0.28700089]
[1633051008146,0.373683,43535.0,43529.0,0.51678989]
[1633051008346,0.38641419,43535.0,43529.0,0.51678989]
[1633051009149,0.38641419,43535.0,43529.0,0.46478989]
[1633051009150,0.35741419,43535.0,43529.0,0.46478989]
[1633051009949,0.38441419,43535.0,43529.0,0.51578989]
[1633051010353,0.371683,43535.0,43529.0,0.51578989]
[1633051010749,0.371683,43535.0,43530.0,0.229249]
[1633051011152,0.1983228,43536.0,43529.0,0.46478989]
[1633051012011,0.1983228,43536.0,43529.0,0.51778989]
[1633051012812,0.1983228,43536.0,43529.0,0.282789]
[1633051013215,0.00126223,43539.0,43530.0,0.229249]
[1633051013414,0.37320802,43540.0,43529.0,0.229789]
[1633051013814,0.01273305,43538.0,43529.0,0.229789]
[1633051014014,0.01273305,43538.0,43532.0,0.18054818]
[1633051014213,0.01273305,43538.0,43533.0,0.229762]
[1633051014414,0.01273305,43538.0,43534.0,0.08206234]
[1633051015627,0.01273305,43538.0,43533.0,0.229762]
[1633051015824,0.344648,43539.0,43533.0,0.229762]
[1633051016023,0.037,43538.0,43534.0,0.047]
[1633051017423,0.40982723,43540.0,43533.0,0.30570437]
[1633051017424,0.06536248,43539.0,43533.0,0.30570437]
[1633051017822,0.25987617,43539.0,43533.0,0.229762]
[1633051018023,0.29587617,43539.0,43533.0,0.279762]
[1633051018824,0.11237623,43536.0,43533.0,0.279762]
[1633051019225,0.01273368,43535.0,43533.0,0.279762]
[1633051019426,0.01273368,43535.0,43533.0,0.229762]
[1633051020024,0.04373368,43535.0,43533.0,0.278762]
[1633051020628,0.19519744,43534.0,43533.0,0.278762]
[1633051020830,0.19519744,43534.0,43533.0,0.049]
[1633051021034,0.19519744,43534.0,43525.0,0.23834473]
[1633051021035,0.10158994,43526.0,43525.0,0.23834473]
[1633051021233,0.32173142,43526.0,43525.0,0.23834473]
[1633051021428,0.1028754,43526.0,43525.0,0.23834473]
[1633051021827,0.38264524,43526.0,43525.0,0.23834473]
[1633051022025,0.65489424,43526.0,43525.0,0.28034473]
[1633051022226,1.06488657,43526.0,43525.0,0.28034473]
[1633051022428,0.99970024,43526.0,43525.0,0.28034473]
[1633051022829,0.80218274,43526.0,43525.0,0.28034473]
[1633051023026,0.99728727,43526.0,43525.0,0.28034473]
[1633051023227,0.95428727,43526.0,43525.0,0.23834473]
[1633051023827,0.77044499,43526.0,43525.0,0.23834473]
[1633051024032,0.617055,43526.0,43525.0,0.27834473]
[1633051024232,0.387806,43526.0,43525.0,0.27834473]
[1633051024636,0.39802869,43526.0,43525.0,0.27834473]
[1633051024830,0.39802869,43526.0,43525.0,0.6126641]
[1633051025231,0.39802869,43526.0,43525.0,0.52579407]
[1633051025430,0.39802869,43526.0,43525.0,0.27834473]
[1633051025831,0.58427769,43526.0,43525.0,0.23834473]
[1633051026034,0.62127769,43526.0,43525.0,0.28434473]
[1633051026833,0.611055,43526.0,43525.0,0.28434473]
[1633051027232,0.381806,43526.0,43525.0,0.28434473]
[1633051027633,0.21820099,43534.0,43525.0,0.23834473]
[1633051027831,0.28743249,43534.0,43526.0,0.0747452]
[1633051028031,0.28743249,43534.0,43527.0,0.00127739]
[1633051028032,0.344729,43530.0,43527.0,0.00127739]
[1633051029433,0.459632,43533.0,43528.0,0.18335923]
[1633051029634,0.10129758,43539.0,43529.0,0.21291579]
[1633051029635,0.06572311,43538.0,43529.0,0.21291579]
[1633051029834,0.06572311,43538.0,43530.0,0.21646692]
[1633051030035,0.043,43533.0,43530.0,0.21646692]
[1633051030233,0.043,43533.0,43528.0,0.22535923]
[1633051030434,0.043,43533.0,43532.0,0.2276398]
[1633051030634,0.043,43533.0,43528.0,0.3157743]
[1633051031035,0.043,43533.0,43528.0,0.22535923]
[1633051031237,0.043,43533.0,43528.0,0.18335923]
[1633051031433,0.0988684,43537.0,43528.0,0.18335923]
[1633051031635,0.0122783,43537.0,43534.0,0.10211561]
[1633051032035,0.344669,43536.0,43529.0,0.2310385]
[1633051032235,0.344669,43536.0,43528.0,0.45414123]
[1633051032836,0.08952174,43533.0,43528.0,0.270782]
[1633051033038,0.344698,43531.0,43528.0,0.041]
[1633051033237,0.229249,43530.0,43528.0,0.041]
[1633051033436,0.229249,43530.0,43525.0,0.23834473]
[1633051033639,0.19309442,43533.0,43525.0,0.23834473]
[1633051033640,0.11917128,43526.0,43525.0,0.23834473]
[1633051033841,0.21126067,43526.0,43525.0,0.23834473]
[1633051034035,0.00129109,43529.0,43525.0,0.27234473]
[1633051034036,0.20465091,43529.0,43525.0,0.27234473]